OrganisationURI,OrganisationLabel,Organisation Unit,TransactionNumber,Beneficiary Name,Expense Type,Purpose,Payment Date,Amount
https://opendatacommunities.org/doc/district-council/cheltenham ,Cheltenham Borough Council,Cheltenham Depot,14093466,A & E Fire and Security Ltd,R2083-ADB103,R&M of Build - Routine,08/04/2022,"1,066.39"
https://opendatacommunities.org/doc/district-council/cheltenham ,Cheltenham Borough Council,Cemetery & Crematorium Repairs & Maintenance,14093515,A & E Fire and Security Ltd,R2705-CCM111,Security Systems,08/04/2022,"2,889.65"
https://opendatacommunities.org/doc/district-council/cheltenham ,Cheltenham Borough Council,Cemetery & Crematorium Repairs & Maintenance,14093535,A & E Fire and Security Ltd,R2705-CCM111,Security Systems,08/04/2022,598.72
https://opendatacommunities.org/doc/district-council/cheltenham ,Cheltenham Borough Council,Recreation Centre Repairs & Maintenance,14093671,A & E Fire and Security Ltd,R2083-REC111,R&M of Build - Routine,08/04/2022,672.8
https://opendatacommunities.org/doc/district-council/cheltenham ,Cheltenham Borough Council,Cheltenham Depot,14093755,A & E Fire and Security Ltd,R2008-ADB103,R & M of Build - Reactive Repairs,08/04/2022,"3,839.11"
https://opendatacommunities.org/doc/district-council/cheltenham ,Cheltenham Borough Council,Cheltenham Depot,14093756,A & E Fire and Security Ltd,R2008-ADB103,R & M of Build - Reactive Repairs,08/04/2022,"3,688.01"
https://opendatacommunities.org/doc/district-council/cheltenham ,Cheltenham Borough Council,Cheltenham Depot,14093757,A & E Fire and Security Ltd,R2008-ADB103,R & M of Build - Reactive Repairs,08/04/2022,"3,074.85"
https://opendatacommunities.org/doc/district-council/cheltenham ,Cheltenham Borough Council,Recreation Centre Repairs & Maintenance,14093769,A & E Fire and Security Ltd,R2042-REC111,R & M of Build Fire Systems,08/04/2022,536.96
https://opendatacommunities.org/doc/district-council/cheltenham ,Cheltenham Borough Council,Oakley Resource Centre,14093778,A & E Fire and Security Ltd,R2008-COM101,R & M of Build - Reactive Repairs,08/04/2022,677.2
https://opendatacommunities.org/doc/district-council/cheltenham ,Cheltenham Borough Council,Repairs and Maintenance,14094018,A & E Fire and Security Ltd,R2042-HRA100,R & M of Build Fire Systems,22/04/2022,"1,349.26"
https://opendatacommunities.org/doc/district-council/cheltenham ,Cheltenham Borough Council,Car Parks - Off Street R&M,14093983,A1 Maintenance (Stroud) Limited,R2008-CPK101,R & M of Build - Reactive Repairs,22/04/2022,"2,245.00"
https://opendatacommunities.org/doc/district-council/cheltenham ,Cheltenham Borough Council,Treasury Management,14093910,Advam (UK) Limited,R4428-COR006,Services - credit card charges,14/04/2022,"1,302.08"
https://opendatacommunities.org/doc/district-council/cheltenham ,Cheltenham Borough Council,Parks & Gardens Repairs & Maintenance,14094288,AGA GROUP ENVIRO-FIX LIMITED,R2076-OPS121,Grounds Maintenance - Non Contract,29/04/2022,"1,328.80"
https://opendatacommunities.org/doc/district-council/cheltenham ,Cheltenham Borough Council,Parks & Gardens Repairs & Maintenance,14094288,AGA GROUP ENVIRO-FIX LIMITED,R2076-OPS121,Grounds Maintenance - Non Contract,29/04/2022,"1,543.81"
https://opendatacommunities.org/doc/district-council/cheltenham ,Cheltenham Borough Council,Council Tax Collection,14094033,Alpha Colour Printers Limited,R4300-LTC001,Printing - Services,22/04/2022,"1,166.00"
https://opendatacommunities.org/doc/district-council/cheltenham ,Cheltenham Borough Council,District Elections,14093776,Alpha Response Print & Mail Limited,R4300-ELE002,Printing - Services,08/04/2022,"3,614.00"
https://opendatacommunities.org/doc/district-council/cheltenham ,Cheltenham Borough Council,Clarence Fountain,14093020,Ares Landscape Architects Limited,C1102-CAP208,Landscaping,08/04/2022,"1,250.00"
https://opendatacommunities.org/doc/district-council/cheltenham ,Cheltenham Borough Council,Clarence Fountain,14093918,Ares Landscape Architects Limited,C1102-CAP208,Landscaping,08/04/2022,"2,541.00"
https://opendatacommunities.org/doc/district-council/cheltenham ,Cheltenham Borough Council,JCS Affordable Housing Capacity Funding,14094060,Ark Consultancy Ltd,R4401-HOS100,Services - Fees and Charges,22/04/2022,735
https://opendatacommunities.org/doc/district-council/cheltenham ,Cheltenham Borough Council,"Cemetery, Crematorium and Churchyards",14094130,Ashdown Supplies,R4011-CCM001,Goods For Resale,22/04/2022,800
https://opendatacommunities.org/doc/district-council/cheltenham ,Cheltenham Borough Council,"Cemetery, Crematorium and Churchyards",14094217,Ashdown Supplies,R4011-CCM001,Goods For Resale,29/04/2022,800
https://opendatacommunities.org/doc/district-council/cheltenham ,Cheltenham Borough Council,Cyber Business Park,14094045,Avison Young (UK) Limited,R4411-PLP105,Consultancy Fees,29/04/2022,"4,300.00"
https://opendatacommunities.org/doc/district-council/cheltenham ,Cheltenham Borough Council,Cyber Business Park,14094044,Avison Young (UK) Limited,R4411-PLP105,Consultancy Fees,29/04/2022,"13,300.00"
https://opendatacommunities.org/doc/district-council/cheltenham ,Cheltenham Borough Council,Cyber Business Park,14094042,Avison Young (UK) Limited,R4411-PLP105,Consultancy Fees,29/04/2022,"3,450.00"
https://opendatacommunities.org/doc/district-council/cheltenham ,Cheltenham Borough Council,Cyber Business Park,14094043,Avison Young (UK) Limited,R4411-PLP105,Consultancy Fees,29/04/2022,"6,900.00"
https://opendatacommunities.org/doc/district-council/cheltenham ,Cheltenham Borough Council,Cyber Business Park,14094077,Avison Young (UK) Limited,R4411-PLP105,Consultancy Fees,29/04/2022,"7,834.17"
https://opendatacommunities.org/doc/district-council/cheltenham ,Cheltenham Borough Council,Cyber Business Park,14094303,Avison Young (UK) Limited,R4411-PLP105,Consultancy Fees,29/04/2022,"15,105.00"
https://opendatacommunities.org/doc/district-council/cheltenham ,Cheltenham Borough Council,Recreation Centre Repairs & Maintenance,14093879,AVT Reliability Pump Division,R2083-REC111,R&M of Build - Routine,08/04/2022,"1,218.00"
https://opendatacommunities.org/doc/district-council/cheltenham ,Cheltenham Borough Council,Community Alarms,14093927,Bauer Radio Limited,R4014-SPP002,Marketing,08/04/2022,505.37
https://opendatacommunities.org/doc/district-council/cheltenham ,Cheltenham Borough Council,External Improvements,14092858,Bell Decorating Group Limited,C1107-CAH003,Building Works,29/04/2022,"44,181.00"
https://opendatacommunities.org/doc/district-council/cheltenham ,Cheltenham Borough Council,External Improvements,14094229,Bell Decorating Group Limited,C1107-CAH003,Building Works,29/04/2022,"19,048.20"
https://opendatacommunities.org/doc/district-council/cheltenham ,Cheltenham Borough Council,Debtors,14094143,Bottomline Technologies Europe Limited (Security Print),R4300-SUP012,Printing - Services,29/04/2022,519
https://opendatacommunities.org/doc/district-council/cheltenham ,Cheltenham Borough Council,Oakley Resource Centre,14094153,British Gas Business,R2101-COM101,Gas,29/04/2022,525.62
https://opendatacommunities.org/doc/district-council/cheltenham ,Cheltenham Borough Council,Supervision and Management,14094247,British Gas Business (Cheltenham),R2100-HRA110,Electricity,29/04/2022,"1,148.44"
https://opendatacommunities.org/doc/district-council/cheltenham ,Cheltenham Borough Council,New Heating Installations,14093899,British Gas Social Housing Ltd t/a PH Jones,C1107-CAH009,Building Works,08/04/2022,"5,135.03"
https://opendatacommunities.org/doc/district-council/cheltenham ,Cheltenham Borough Council,Repairs and Maintenance,14093900,British Gas Social Housing Ltd t/a PH Jones,R2040-HRA100,R & M of Build Central Heating,08/04/2022,"2,917.98"
https://opendatacommunities.org/doc/district-council/cheltenham ,Cheltenham Borough Council,New Heating Installations,14093901,British Gas Social Housing Ltd t/a PH Jones,C1107-CAH009,Building Works,08/04/2022,"14,095.98"
https://opendatacommunities.org/doc/district-council/cheltenham ,Cheltenham Borough Council,Repairs and Maintenance,14093915,British Gas Social Housing Ltd t/a PH Jones,R2040-HRA100,R & M of Build Central Heating,08/04/2022,"2,188.29"
https://opendatacommunities.org/doc/district-council/cheltenham ,Cheltenham Borough Council,New Heating Installations,14093914,British Gas Social Housing Ltd t/a PH Jones,C1107-CAH009,Building Works,08/04/2022,"1,404.41"
https://opendatacommunities.org/doc/district-council/cheltenham ,Cheltenham Borough Council,Repairs and Maintenance,14094135,British Gas Social Housing Ltd t/a PH Jones,R2040-HRA100,R & M of Build Central Heating,29/04/2022,"1,608.63"
https://opendatacommunities.org/doc/district-council/cheltenham ,Cheltenham Borough Council,Repairs and Maintenance,14094137,British Gas Social Housing Ltd t/a PH Jones,R2040-HRA100,R & M of Build Central Heating,29/04/2022,"1,293.76"
https://opendatacommunities.org/doc/district-council/cheltenham ,Cheltenham Borough Council,New Heating Installations,14094138,British Gas Social Housing Ltd t/a PH Jones,C1107-CAH009,Building Works,29/04/2022,"4,283.54"
https://opendatacommunities.org/doc/district-council/cheltenham ,Cheltenham Borough Council,New Heating Installations,14094139,British Gas Social Housing Ltd t/a PH Jones,C1107-CAH009,Building Works,29/04/2022,"3,884.18"
https://opendatacommunities.org/doc/district-council/cheltenham ,Cheltenham Borough Council,New Heating Installations,14094140,British Gas Social Housing Ltd t/a PH Jones,C1107-CAH009,Building Works,29/04/2022,"14,220.91"
https://opendatacommunities.org/doc/district-council/cheltenham ,Cheltenham Borough Council,Repairs and Maintenance,14094124,British Gas Social Housing Ltd t/a PH Jones,R2040-HRA100,R & M of Build Central Heating,29/04/2022,"1,482.39"
https://opendatacommunities.org/doc/district-council/cheltenham ,Cheltenham Borough Council,Repairs and Maintenance,14094125,British Gas Social Housing Ltd t/a PH Jones,R2040-HRA100,R & M of Build Central Heating,29/04/2022,"4,676.25"
https://opendatacommunities.org/doc/district-council/cheltenham ,Cheltenham Borough Council,Repairs and Maintenance,14094151,British Gas Social Housing Ltd t/a PH Jones,R2040-HRA100,R & M of Build Central Heating,22/04/2022,"20,460.42"
https://opendatacommunities.org/doc/district-council/cheltenham ,Cheltenham Borough Council,Repairs and Maintenance,14094307,British Gas Social Housing Ltd t/a PH Jones,R2040-HRA100,R & M of Build Central Heating,29/04/2022,"4,159.44"
https://opendatacommunities.org/doc/district-council/cheltenham ,Cheltenham Borough Council,Building Control - Fee Earning Work,14094118,British Standards Institution (BSI),R4701-BUC001,Subscriptions,29/04/2022,836
https://opendatacommunities.org/doc/district-council/cheltenham ,Cheltenham Borough Council,Income and Expenditure on Investment Properties and Changes in Their Fair Value,14094190,Bruton Knowles,R4400-FIE040,Services - Professional Fees,29/04/2022,"3,600.00"
https://opendatacommunities.org/doc/district-council/cheltenham ,Cheltenham Borough Council,Cheltenham Municipal Offices,14094254,Bunzl Cleaning and Hygiene Supplies,R4009-ADB101,Materials - Cleaning Materials,29/04/2022,584.24
https://opendatacommunities.org/doc/district-council/cheltenham ,Cheltenham Borough Council,Sports & Open Spaces Repairs & Maintenance,14093866,C P W Daniell Limited,R4400-OPS122,Services - Professional Fees,08/04/2022,"4,663.00"
https://opendatacommunities.org/doc/district-council/cheltenham ,Cheltenham Borough Council,Recreation Centre Repairs & Maintenance,14094158,Centrica Business Solutions (Generations) limited,R2100-REC111,Electricity,29/04/2022,"2,356.73"
https://opendatacommunities.org/doc/district-council/cheltenham ,Cheltenham Borough Council,Income and Expenditure on Investment Properties and Changes in Their Fair Value,14093762,Charles Hurst Limited (part of Lookers Group),R2008-FIE040,R & M of Build - Reactive Repairs,08/04/2022,"1,540.00"
https://opendatacommunities.org/doc/district-council/cheltenham ,Cheltenham Borough Council,Community Infrastructure Levy (CIL) Collection Account,14094100,Charlton Kings Parish Council (Treasurers Account),R4401-HLD180,Services - Fees and Charges,29/04/2022,"5,848.94"
https://opendatacommunities.org/doc/district-council/cheltenham ,Cheltenham Borough Council,Community Welfare Grants,14093893,Cheltenham Arts Council,R6280-GBD001,Grants,08/04/2022,"5,000.00"
https://opendatacommunities.org/doc/district-council/cheltenham ,Cheltenham Borough Council,Cheltenham Business Improvement District (BID) Levy,14094450,Cheltenham Bid Limited,R4974-HLD160,Reimbursement to other L.A.'s,13/04/2022,"4,531.75"
https://opendatacommunities.org/doc/district-council/cheltenham ,Cheltenham Borough Council,Xmas in Cheltenham,14094080,Cheltenham Bid Limited,R4000-ECD101,Equipment Purchase,22/04/2022,"47,000.00"
https://opendatacommunities.org/doc/district-council/cheltenham ,Cheltenham Borough Council,"Cemetery, Crematorium and Churchyards",14094098,Cheltenham Garden Machinery,R4000-CCM001,Equipment Purchase,22/04/2022,"1,182.50"
https://opendatacommunities.org/doc/district-council/cheltenham ,Cheltenham Borough Council,Civic Expenses,14094211,Cheltenham Leisure and Culture Limited,R2201-DRM009,Room Hire,29/04/2022,875
https://opendatacommunities.org/doc/district-council/cheltenham ,Cheltenham Borough Council,Trees,14094072,Cheltenham Tree Services Limited,R2070-PLP006,Tree Work,22/04/2022,"2,540.00"
https://opendatacommunities.org/doc/district-council/cheltenham ,Cheltenham Borough Council,Community Welfare Grants,14094074,Cheltenham West End Partnership Limited,R6280-GBD001,Grants,29/04/2022,"1,600.00"
https://opendatacommunities.org/doc/district-council/cheltenham ,Cheltenham Borough Council,Cashiers,14093332,Civica UK Limited,R4534-SUP014,IT - Maint Agreements,29/04/2022,"2,500.00"
https://opendatacommunities.org/doc/district-council/cheltenham ,Cheltenham Borough Council,Revenues & Benefits Overheads,14094056,Civica UK Limited,R4531-LTC101,IT - Purchase of Software,22/04/2022,"6,500.00"
https://opendatacommunities.org/doc/district-council/cheltenham ,Cheltenham Borough Council,Revenues & Benefits Overheads,14094055,Civica UK Limited,R4531-LTC101,IT - Purchase of Software,22/04/2022,"6,500.00"
https://opendatacommunities.org/doc/district-council/cheltenham ,Cheltenham Borough Council,Pittville Pump Room Repairs & Maintenance,14093871,"Clarke, Nicholls & Marcel Limited (CNM)",R2004-CUL113,R & M of Build Programmed,08/04/2022,"3,594.25"
https://opendatacommunities.org/doc/district-council/cheltenham ,Cheltenham Borough Council,"Cemetery, Crematorium and Churchyards",14093663,Cleevelands Medical Centre,R4401-CCM001,Services - Fees and Charges,08/04/2022,"3,725.00"
https://opendatacommunities.org/doc/district-council/cheltenham ,Cheltenham Borough Council,"Cemetery, Crematorium and Churchyards",14094014,Cleevelands Medical Centre,R4401-CCM001,Services - Fees and Charges,22/04/2022,"3,775.00"
https://opendatacommunities.org/doc/district-council/cheltenham ,Cheltenham Borough Council,CCTV,14093892,Computerised & Digital Security Systems Limited,R4436-CCT001,CCTV Line Rental,08/04/2022,"14,670.00"
https://opendatacommunities.org/doc/district-council/cheltenham ,Cheltenham Borough Council,CCTV,14093880,Computerised & Digital Security Systems Limited,C4009-CAP201,C C T V,08/04/2022,"18,013.67"
https://opendatacommunities.org/doc/district-council/cheltenham ,Cheltenham Borough Council,Lift Refurbishment,14093603,Concept Elevators (UK) Ltd,C1107-CAH011,Building Works,29/04/2022,"2,632.00"
https://opendatacommunities.org/doc/district-council/cheltenham ,Cheltenham Borough Council,Oakley Resource Centre,14094159,County Clean Limited,R2700-COM101,Contract Cleaning,29/04/2022,"1,515.02"
https://opendatacommunities.org/doc/district-council/cheltenham ,Cheltenham Borough Council,Oakley Resource Centre,14094160,County Clean Limited,R2700-COM101,Contract Cleaning,29/04/2022,"1,675.26"
https://opendatacommunities.org/doc/district-council/cheltenham ,Cheltenham Borough Council,High Street re-opening,14093819,Cube Modular Ltd,R4410-COV020,Hire of Facilities,01/04/2022,"4,999.50"
https://opendatacommunities.org/doc/district-council/cheltenham ,Cheltenham Borough Council,Structural / Damp Works,14093432,Curtins Consulting Limited,C1005-CAH016,Surveyors Fees,08/04/2022,"1,225.00"
https://opendatacommunities.org/doc/district-council/cheltenham ,Cheltenham Borough Council,Car Parks - Off Street R&M,14093439,Cushman & Wakefield Debenham Tie Leung Ltd,R2001-CPK101,R & M of Fix & Fit - General,08/04/2022,"25,188.25"
https://opendatacommunities.org/doc/district-council/cheltenham ,Cheltenham Borough Council,ICT,14094011,Dell Corporation Limited,R4000-SUP005,Equipment Purchase,22/04/2022,"3,413.45"
https://opendatacommunities.org/doc/district-council/cheltenham ,Cheltenham Borough Council,Supervision and Management,14093935,Doro Care (UK) Ltd T/A Careium,R4445-HRA110,Communal Alarms - Monitoring & Maintenance,22/04/2022,"4,790.50"
https://opendatacommunities.org/doc/district-council/cheltenham ,Cheltenham Borough Council,Sports & Open Spaces Repairs & Maintenance,14094182,E.G. Carter & Co. Limited,R2008-OPS122,R & M of Build - Reactive Repairs,29/04/2022,651.24
https://opendatacommunities.org/doc/district-council/cheltenham ,Cheltenham Borough Council,Building Control - Fee Earning Work,14094122,E.G. Carter & Co. Limited,R9301-BUC001,Fees - Building Regulations,29/04/2022,"3,250.00"
https://opendatacommunities.org/doc/district-council/cheltenham ,Cheltenham Borough Council,Recycling Centres,14094203,Environment Agency,R4402-RYC004,Services - General Licences,29/04/2022,"1,053.55"
https://opendatacommunities.org/doc/district-council/cheltenham ,Cheltenham Borough Council,Asbestos Management,14093929,Environmental Management Solutions Limited,C1107-CAH012,Building Works,22/04/2022,"37,832.00"
https://opendatacommunities.org/doc/district-council/cheltenham ,Cheltenham Borough Council,Income and Expenditure on Investment Properties and Changes in Their Fair Value,14094067,E-on Next,R2101-FIE040,Gas,22/04/2022,"1,427.15"
https://opendatacommunities.org/doc/district-council/cheltenham ,Cheltenham Borough Council,Waste & Recycling - Marketing & Management,14094200,Epic Media Group Limited,R4000-RYC007,Equipment Purchase,29/04/2022,"1,316.94"
https://opendatacommunities.org/doc/district-council/cheltenham ,Cheltenham Borough Council,Corporate Management,14094224,Epiq Systems Ltd,R4420-COR001,Legal Expenses And Court Costs,29/04/2022,"2,599.26"
https://opendatacommunities.org/doc/district-council/cheltenham ,Cheltenham Borough Council,Income and Expenditure on Investment Properties and Changes in Their Fair Value,14094152,Eve Building Consultancy Limited,R4401-FIE040,Services - Fees and Charges,29/04/2022,"8,387.00"
https://opendatacommunities.org/doc/district-council/cheltenham ,Cheltenham Borough Council,Sustainability Measures,14094170,Evolve Home Energy Solutions Limited,C1107-CAH032,Building Works,29/04/2022,535.5
https://opendatacommunities.org/doc/district-council/cheltenham ,Cheltenham Borough Council,Flood Risk Management,14093591,First Arb Tree Services,R5001-FRM101,TPP - Major External Contractors,14/04/2022,"2,070.00"
https://opendatacommunities.org/doc/district-council/cheltenham ,Cheltenham Borough Council,Trees,14094087,First Arb Tree Services,R2070-PLP006,Tree Work,22/04/2022,"1,780.00"
https://opendatacommunities.org/doc/district-council/cheltenham ,Cheltenham Borough Council,Community Welfare Grants,14093902,Friends of Pittville,R6280-GBD001,Grants,08/04/2022,682.25
https://opendatacommunities.org/doc/district-council/cheltenham ,Cheltenham Borough Council,Trees,14094032,Gaskins Treework Specialists,R2070-PLP006,Tree Work,22/04/2022,"1,225.00"
https://opendatacommunities.org/doc/district-council/cheltenham ,Cheltenham Borough Council,Trees,14094256,Gaskins Treework Specialists,R2070-PLP006,Tree Work,29/04/2022,"5,987.00"
https://opendatacommunities.org/doc/district-council/cheltenham ,Cheltenham Borough Council,Trees,14094257,Gaskins Treework Specialists,R2070-PLP006,Tree Work,29/04/2022,"4,500.00"
https://opendatacommunities.org/doc/district-council/cheltenham ,Cheltenham Borough Council,Supervision and Management,14094095,Gillmans Electrical Ltd,R4002-HRA110,Tools & Equipment - Lease/Rental,22/04/2022,"1,950.78"
https://opendatacommunities.org/doc/district-council/cheltenham ,Cheltenham Borough Council,"Cemetery, Crematorium and Churchyards",14093922,Glasdon UK Limited,R4010-CCM001,Materials - Other Materials,08/04/2022,705.92
https://opendatacommunities.org/doc/district-council/cheltenham ,Cheltenham Borough Council,Recreation Centre Repairs & Maintenance,14093998,Glevum Security Limited,R4401-REC111,Services - Fees and Charges,22/04/2022,648
https://opendatacommunities.org/doc/district-council/cheltenham ,Cheltenham Borough Council,Recreation Centre Repairs & Maintenance,14093997,Glevum Security Limited,R4401-REC111,Services - Fees and Charges,22/04/2022,864
https://opendatacommunities.org/doc/district-council/cheltenham ,Cheltenham Borough Council,Climate Change,14094030,Gloucester City Council,R4411-CCC001,Consultancy Fees,22/04/2022,"5,646.00"
https://opendatacommunities.org/doc/district-council/cheltenham ,Cheltenham Borough Council,Minster Innovation Exchange,14093227,Gloucestershire County Council,C1107-CAP515,Building Works,08/04/2022,"1,075.00"
https://opendatacommunities.org/doc/district-council/cheltenham ,Cheltenham Borough Council,Minster Innovation Exchange,14094024,Gloucestershire County Council,C1107-CAP515,Building Works,22/04/2022,"1,350.00"
https://opendatacommunities.org/doc/district-council/cheltenham ,Cheltenham Borough Council,Trade Waste,14094180,Gloucestershire County Council,R4417-TRW001,Waste Tipping Charges,29/04/2022,"1,782.87"
https://opendatacommunities.org/doc/district-council/cheltenham ,Cheltenham Borough Council,Land Charges,14094189,Gloucestershire County Council,R4401-BUC004,Services - Fees and Charges,29/04/2022,"5,750.44"
https://opendatacommunities.org/doc/district-council/cheltenham ,Cheltenham Borough Council,Repairs and Maintenance,14094214,Ian Williams Limited,R2060-HRA100,R & M of Build Cyclical Painting Communal Areas,29/04/2022,"62,963.40"
https://opendatacommunities.org/doc/district-council/cheltenham ,Cheltenham Borough Council,Repairs and Maintenance,14094232,Ian Williams Limited,R2060-HRA100,R & M of Build Cyclical Painting Communal Areas,29/04/2022,"134,090.66"
https://opendatacommunities.org/doc/district-council/cheltenham ,Cheltenham Borough Council,Homelessness,14094240,John Reed (Landlord),R6280-HOM001,Grants,29/04/2022,550
https://opendatacommunities.org/doc/district-council/cheltenham ,Cheltenham Borough Council,External Improvements,14093822,Joyner P A Ltd,C1107-CAH003,Building Works,08/04/2022,"1,380.00"
https://opendatacommunities.org/doc/district-council/cheltenham ,Cheltenham Borough Council,External Improvements,14094215,Joyner P A Ltd,C1107-CAH003,Building Works,29/04/2022,"230,586.38"
https://opendatacommunities.org/doc/district-council/cheltenham ,Cheltenham Borough Council,Option Appraisal Voids,14093824,Kendall Kingscott Limited,C1107-CAH002,Building Works,08/04/2022,"1,155.00"
https://opendatacommunities.org/doc/district-council/cheltenham ,Cheltenham Borough Council,Community Infrastructure Levy (CIL) Collection Account,14094094,Leckhampton with Warden Hill Parish Council,R4401-HLD180,Services - Fees and Charges,29/04/2022,"14,873.44"
https://opendatacommunities.org/doc/district-council/cheltenham ,Cheltenham Borough Council,ICT,14094128,LinchPin Networks Limited,R4548-SUP005,IT - Cabling and Network,29/04/2022,988.5
https://opendatacommunities.org/doc/district-council/cheltenham ,Cheltenham Borough Council,ICT,14094129,LinchPin Networks Limited,R4548-SUP005,IT - Cabling and Network,29/04/2022,988.5
https://opendatacommunities.org/doc/district-council/cheltenham ,Cheltenham Borough Council,Vehicles & recycling equipment,14093882,Lister Wilder Limited,C4000-CAP301,Acquisition of Equipment,08/04/2022,"49,071.66"
https://opendatacommunities.org/doc/district-council/cheltenham ,Cheltenham Borough Council,Public Sector Decarbonisation Scheme (Carbon Neutral Agenda),14093250,Low Carbon Estates Limited,C1112-CAP032,Site Investigation,08/04/2022,"3,372.71"
https://opendatacommunities.org/doc/district-council/cheltenham ,Cheltenham Borough Council,Repairs and Maintenance,14092782,Low Carbon Exchange (LCX Solar Limited),R2004-HRA100,R & M of Build Programmed,08/04/2022,"17,985.49"
https://opendatacommunities.org/doc/district-council/cheltenham ,Cheltenham Borough Council,Sustainability Measures,14093919,Low Carbon Exchange (LCX Solar Limited),C1107-CAH032,Building Works,08/04/2022,"1,310.00"
https://opendatacommunities.org/doc/district-council/cheltenham ,Cheltenham Borough Council,Corporate Management,14094284,Manchester City Council,R4701-COR001,Subscriptions,29/04/2022,"1,080.00"
https://opendatacommunities.org/doc/district-council/cheltenham ,Cheltenham Borough Council,Flood Risk Management,14094069,Mark Wroot Agricultural & Garden Services,R5001-FRM101,TPP - Major External Contractors,29/04/2022,950
https://opendatacommunities.org/doc/district-council/cheltenham ,Cheltenham Borough Council,Pest Control,14094034,Metex Online Ltd,R4000-REG018,Equipment Purchase,22/04/2022,624
https://opendatacommunities.org/doc/district-council/cheltenham ,Cheltenham Borough Council,Repairs and Maintenance,14093993,Morgan Lambert Limited,R2040-HRA100,R & M of Build Central Heating,22/04/2022,"1,540.00"
https://opendatacommunities.org/doc/district-council/cheltenham ,Cheltenham Borough Council,"Cemetery, Crematorium and Churchyards",14094035,Mr John Sureda,R4408-CCM001,Other Contractors Fees,22/04/2022,961
https://opendatacommunities.org/doc/district-council/cheltenham ,Cheltenham Borough Council,Repairs and Maintenance,14093921,Nationwide Property Assistance Ltd T/A Davies Emergency Response,R2012-HRA100,R & M of Build Standby and Call Out,29/04/2022,"4,195.51"
https://opendatacommunities.org/doc/district-council/cheltenham ,Cheltenham Borough Council,Repairs and Maintenance,14094050,Nationwide Property Assistance Ltd T/A Davies Emergency Response,R2012-HRA100,R & M of Build Standby and Call Out,22/04/2022,710.6
https://opendatacommunities.org/doc/district-council/cheltenham ,Cheltenham Borough Council,Window & Door Renewals,14094071,Nationwide Windows Limited,C1107-CAH017,Building Works,22/04/2022,"6,211.87"
https://opendatacommunities.org/doc/district-council/cheltenham ,Cheltenham Borough Council,Window & Door Renewals,14094049,Nationwide Windows Limited,C1107-CAH017,Building Works,22/04/2022,"4,528.99"
https://opendatacommunities.org/doc/district-council/cheltenham ,Cheltenham Borough Council,Window & Door Renewals,14094048,Nationwide Windows Limited,C1107-CAH017,Building Works,22/04/2022,"4,892.87"
https://opendatacommunities.org/doc/district-council/cheltenham ,Cheltenham Borough Council,Window & Door Renewals,14094243,Nationwide Windows Limited,C1107-CAH017,Building Works,29/04/2022,"25,683.43"
https://opendatacommunities.org/doc/district-council/cheltenham ,Cheltenham Borough Council,Window & Door Renewals,14094241,Nationwide Windows Limited,C1107-CAH017,Building Works,29/04/2022,"13,033.83"
https://opendatacommunities.org/doc/district-council/cheltenham ,Cheltenham Borough Council,Window & Door Renewals,14094242,Nationwide Windows Limited,C1107-CAH017,Building Works,29/04/2022,"11,163.32"
https://opendatacommunities.org/doc/district-council/cheltenham ,Cheltenham Borough Council,Window & Door Renewals,14094219,Nationwide Windows Limited,C1107-CAH017,Building Works,29/04/2022,"5,011.37"
https://opendatacommunities.org/doc/district-council/cheltenham ,Cheltenham Borough Council,Window & Door Renewals,14094227,Nationwide Windows Limited,C1107-CAH017,Building Works,29/04/2022,"18,834.37"
https://opendatacommunities.org/doc/district-council/cheltenham ,Cheltenham Borough Council,Window & Door Renewals,14094226,Nationwide Windows Limited,C1107-CAH017,Building Works,29/04/2022,"2,334.02"
https://opendatacommunities.org/doc/district-council/cheltenham ,Cheltenham Borough Council,Digital Platform,14093887,Netcall Technology Limited,C4005-CAP010,Computer Software,08/04/2022,"21,694.50"
https://opendatacommunities.org/doc/district-council/cheltenham ,Cheltenham Borough Council,Digital Platform,14094205,Netcall Technology Limited,C4005-CAP010,Computer Software,29/04/2022,"40,500.00"
https://opendatacommunities.org/doc/district-council/cheltenham ,Cheltenham Borough Council,Digital Platform,14094206,Netcall Technology Limited,C4005-CAP010,Computer Software,29/04/2022,"2,700.01"
https://opendatacommunities.org/doc/district-council/cheltenham ,Cheltenham Borough Council,Car Parks - Off Street Operations,14093979,Network Merchants Limited,R4428-CPK001,Services - credit card charges,22/04/2022,"1,680.30"
https://opendatacommunities.org/doc/district-council/cheltenham ,Cheltenham Borough Council,Prince of Wales Stadium Repairs & Maintenance,14093826,Newport & Hereford Drainage Ltd t/a Metro Rod,R2043-REC112,R & M of Build Drain Cleaning,08/04/2022,"4,715.05"
https://opendatacommunities.org/doc/district-council/cheltenham ,Cheltenham Borough Council,Cheltenham Depot,14093825,Newport & Hereford Drainage Ltd t/a Metro Rod,R2043-ADB103,R & M of Build Drain Cleaning,08/04/2022,"1,680.00"
https://opendatacommunities.org/doc/district-council/cheltenham ,Cheltenham Borough Council,Art Gallery & Museum Repairs & Maintenance,14094123,Nordic Forsakring & Riskhantering AB,R2800-CUL117,Insurances - Premises,22/04/2022,"25,456.15"
https://opendatacommunities.org/doc/district-council/cheltenham ,Cheltenham Borough Council,Income and Expenditure on Investment Properties and Changes in Their Fair Value,14093758,O'Brien & Price Cheltenham Limited,R2004-FIE040,R & M of Build Programmed,08/04/2022,"1,295.00"
https://opendatacommunities.org/doc/district-council/cheltenham ,Cheltenham Borough Council,Cheltenham Depot,14093584,Oconnor Construction Company Ltd,R3201-ADB103,Hire of Plant,08/04/2022,"1,327.50"
https://opendatacommunities.org/doc/district-council/cheltenham ,Cheltenham Borough Council,"Cemetery, Crematorium and Churchyards",14093911,Oconnor Construction Company Ltd,R3201-CCM001,Hire of Plant,14/04/2022,967
https://opendatacommunities.org/doc/district-council/cheltenham ,Cheltenham Borough Council,"Cemetery, Crematorium and Churchyards",14094052,Oconnor Construction Company Ltd,R3201-CCM001,Hire of Plant,22/04/2022,967
https://opendatacommunities.org/doc/district-council/cheltenham ,Cheltenham Borough Council,"Cemetery, Crematorium and Churchyards",14094102,Oconnor Construction Company Ltd,R2076-CCM001,Grounds Maintenance - Non Contract,22/04/2022,"3,675.00"
https://opendatacommunities.org/doc/district-council/cheltenham ,Cheltenham Borough Council,Cyber Business Park,14094171,OggaDoon Ltd,R4014-PLP105,Marketing,29/04/2022,"4,000.00"
https://opendatacommunities.org/doc/district-council/cheltenham ,Cheltenham Borough Council,Cyber Business Park,14094172,OggaDoon Ltd,R4014-PLP105,Marketing,29/04/2022,"4,000.00"
https://opendatacommunities.org/doc/district-council/cheltenham ,Cheltenham Borough Council,Cyber Business Park,14093847,Omnigenix,R4411-PLP105,Consultancy Fees,08/04/2022,"4,500.00"
https://opendatacommunities.org/doc/district-council/cheltenham ,Cheltenham Borough Council,Cheltenham Municipal Offices,14094195,Otis Limited,R2010-ADB101,R & M of Plant Lifts,29/04/2022,"4,244.88"
https://opendatacommunities.org/doc/district-council/cheltenham ,Cheltenham Borough Council,Car Parks - Off Street R&M,14093966,Otis Limited,R2004-CPK101,R & M of Build Programmed,22/04/2022,"8,028.23"
https://opendatacommunities.org/doc/district-council/cheltenham ,Cheltenham Borough Council,Recreation Centre Repairs & Maintenance,14093528,P & R Heating Limited,R2080-REC111,Mechanical Services,08/04/2022,"12,419.51"
https://opendatacommunities.org/doc/district-council/cheltenham ,Cheltenham Borough Council,Cheltenham Municipal Offices,14093527,P & R Heating Limited,R2080-ADB101,Mechanical Services,08/04/2022,"2,695.00"
https://opendatacommunities.org/doc/district-council/cheltenham ,Cheltenham Borough Council,Cheltenham Municipal Offices,14093964,P & R Heating Limited,R2004-ADB101,R & M of Build Programmed,22/04/2022,"13,850.00"
https://opendatacommunities.org/doc/district-council/cheltenham ,Cheltenham Borough Council,Public Conveniences R&M,14093818,P & R Heating Limited,R2079-REG119,Sanitary and Plumbing,08/04/2022,513.5
https://opendatacommunities.org/doc/district-council/cheltenham ,Cheltenham Borough Council,Cheltenham Municipal Offices,14093655,P & R Heating Limited,R2062-ADB101,R & M of Build Cyclical Electrical Remedials,08/04/2022,"1,274.00"
https://opendatacommunities.org/doc/district-council/cheltenham ,Cheltenham Borough Council,Sports & Open Spaces Repairs & Maintenance,14093779,P & R Heating Limited,R2004-OPS122,R & M of Build Programmed,08/04/2022,"1,825.00"
https://opendatacommunities.org/doc/district-council/cheltenham ,Cheltenham Borough Council,Cheltenham Depot,14093696,P & R Heating Limited,R2083-ADB103,R&M of Build - Routine,08/04/2022,649.98
https://opendatacommunities.org/doc/district-council/cheltenham ,Cheltenham Borough Council,Recreation Centre Repairs & Maintenance,14093698,P & R Heating Limited,R2083-REC111,R&M of Build - Routine,08/04/2022,962.49
https://opendatacommunities.org/doc/district-council/cheltenham ,Cheltenham Borough Council,Art Gallery & Museum Repairs & Maintenance,14093727,P & R Heating Limited,R2062-CUL117,R & M of Build Cyclical Electrical Remedials,08/04/2022,712
https://opendatacommunities.org/doc/district-council/cheltenham ,Cheltenham Borough Council,Cheltenham Depot,14093750,P & R Heating Limited,R2062-ADB103,R & M of Build Cyclical Electrical Remedials,08/04/2022,535
https://opendatacommunities.org/doc/district-council/cheltenham ,Cheltenham Borough Council,Car Parks - Off Street R&M,14093846,P & R Heating Limited,R2062-CPK101,R & M of Build Cyclical Electrical Remedials,08/04/2022,"1,050.00"
https://opendatacommunities.org/doc/district-council/cheltenham ,Cheltenham Borough Council,Car Parks - Off Street R&M,14093874,P & R Heating Limited,R2062-CPK101,R & M of Build Cyclical Electrical Remedials,08/04/2022,"1,310.00"
https://opendatacommunities.org/doc/district-council/cheltenham ,Cheltenham Borough Council,Car Parks - Off Street R&M,14093868,P & R Heating Limited,R2062-CPK101,R & M of Build Cyclical Electrical Remedials,08/04/2022,695
https://opendatacommunities.org/doc/district-council/cheltenham ,Cheltenham Borough Council,Car Parks - Off Street R&M,14093913,P & R Heating Limited,R2008-CPK101,R & M of Build - Reactive Repairs,14/04/2022,510
https://opendatacommunities.org/doc/district-council/cheltenham ,Cheltenham Borough Council,Pittville Pump Room Repairs & Maintenance,14093742,P & R Heating Limited,R2062-CUL113,R & M of Build Cyclical Electrical Remedials,08/04/2022,735
https://opendatacommunities.org/doc/district-council/cheltenham ,Cheltenham Borough Council,Car Parks - Off Street R&M,14093741,P & R Heating Limited,R2062-CPK101,R & M of Build Cyclical Electrical Remedials,08/04/2022,"1,685.00"
https://opendatacommunities.org/doc/district-council/cheltenham ,Cheltenham Borough Council,Car Parks - Off Street R&M,14093744,P & R Heating Limited,R2062-CPK101,R & M of Build Cyclical Electrical Remedials,08/04/2022,544
https://opendatacommunities.org/doc/district-council/cheltenham ,Cheltenham Borough Council,Car Parks - Off Street R&M,14093734,P & R Heating Limited,R2062-CPK101,R & M of Build Cyclical Electrical Remedials,08/04/2022,"1,800.00"
https://opendatacommunities.org/doc/district-council/cheltenham ,Cheltenham Borough Council,Recreation Centre Repairs & Maintenance,14093864,P & R Heating Limited,R2080-REC111,Mechanical Services,08/04/2022,"1,460.40"
https://opendatacommunities.org/doc/district-council/cheltenham ,Cheltenham Borough Council,Town Hall Repairs & Maintenance,14093873,P & R Heating Limited,R2062-CUL112,R & M of Build Cyclical Electrical Remedials,08/04/2022,725
https://opendatacommunities.org/doc/district-council/cheltenham ,Cheltenham Borough Council,Sports & Open Spaces Repairs & Maintenance,14093858,P & R Heating Limited,R2004-OPS122,R & M of Build Programmed,08/04/2022,980
https://opendatacommunities.org/doc/district-council/cheltenham ,Cheltenham Borough Council,Sports & Open Spaces Repairs & Maintenance,14093859,P & R Heating Limited,R2004-OPS122,R & M of Build Programmed,08/04/2022,"1,685.00"
https://opendatacommunities.org/doc/district-council/cheltenham ,Cheltenham Borough Council,Art Gallery & Museum Repairs & Maintenance,14094201,P & R Heating Limited,R2080-CUL117,Mechanical Services,29/04/2022,"4,924.42"
https://opendatacommunities.org/doc/district-council/cheltenham ,Cheltenham Borough Council,Recreation Centre Repairs & Maintenance,14094202,P & R Heating Limited,R2062-REC111,R & M of Build Cyclical Electrical Remedials,29/04/2022,"11,405.00"
https://opendatacommunities.org/doc/district-council/cheltenham ,Cheltenham Borough Council,Recreation Centre Repairs & Maintenance,14094197,P & R Heating Limited,R2083-REC111,R&M of Build - Routine,29/04/2022,683.5
https://opendatacommunities.org/doc/district-council/cheltenham ,Cheltenham Borough Council,Development Control - Applications,14093668,Park Avenue Recruitment Limited,R4400-DEV001,Services - Professional Fees,14/04/2022,750
https://opendatacommunities.org/doc/district-council/cheltenham ,Cheltenham Borough Council,Development Control - Applications,14093764,Park Avenue Recruitment Limited,R4400-DEV001,Services - Professional Fees,14/04/2022,750
https://opendatacommunities.org/doc/district-council/cheltenham ,Cheltenham Borough Council,Development Control - Applications,14093990,Park Avenue Recruitment Limited,R4400-DEV001,Services - Professional Fees,22/04/2022,750
https://opendatacommunities.org/doc/district-council/cheltenham ,Cheltenham Borough Council,Development Control - Applications,14094218,Park Avenue Recruitment Limited,R4400-DEV001,Services - Professional Fees,29/04/2022,750
https://opendatacommunities.org/doc/district-council/cheltenham ,Cheltenham Borough Council,Car Parks - Off Street Operations,14094149,Paybyphone Limited,R4401-CPK001,Services - Fees and Charges,29/04/2022,"3,279.08"
https://opendatacommunities.org/doc/district-council/cheltenham ,Cheltenham Borough Council,Minster Innovation Exchange,14094131,Perfect Circle JV Limited,C1105-CAP515,Design Services,29/04/2022,"9,425.84"
https://opendatacommunities.org/doc/district-council/cheltenham ,Cheltenham Borough Council,Big Local Project,14094225,Pink Sky Limited,R6280-COM104,Grants,29/04/2022,"1,200.00"
https://opendatacommunities.org/doc/district-council/cheltenham ,Cheltenham Borough Council,Corporate Policy Making,14093588,Police and Crime Commissioner for Gloucestershire,R4400-COR003,Services - Professional Fees,08/04/2022,618
https://opendatacommunities.org/doc/district-council/cheltenham ,Cheltenham Borough Council,Community Infrastructure Levy (CIL) Collection Account,14094096,Prestbury Parish Council,R4401-HLD180,Services - Fees and Charges,29/04/2022,"65,183.20"
https://opendatacommunities.org/doc/district-council/cheltenham ,Cheltenham Borough Council,No Child Left Behind,14093884,Production:AV Limited,R4400-GBD002,Services - Professional Fees,01/04/2022,"2,500.00"
https://opendatacommunities.org/doc/district-council/cheltenham ,Cheltenham Borough Council,Publica Business Support Contract,14093932,Publica Group (Support) Limited,R5500-SUP106,TPP - Publica Contract,22/04/2022,"96,928.30"
https://opendatacommunities.org/doc/district-council/cheltenham ,Cheltenham Borough Council,Recreation Centre Repairs & Maintenance,14094107,R F Gardiner Limited T/as Gardiners,R2008-REC111,R & M of Build - Reactive Repairs,29/04/2022,585.08
https://opendatacommunities.org/doc/district-council/cheltenham ,Cheltenham Borough Council,Car Parks - Off Street R&M,14093302,R F Gardiner Limited T/as Gardiners,R2008-CPK101,R & M of Build - Reactive Repairs,22/04/2022,"2,093.68"
https://opendatacommunities.org/doc/district-council/cheltenham ,Cheltenham Borough Council,Cheltenham Depot,14094105,R F Gardiner Limited T/as Gardiners,R2008-ADB103,R & M of Build - Reactive Repairs,29/04/2022,"3,749.00"
https://opendatacommunities.org/doc/district-council/cheltenham ,Cheltenham Borough Council,Royal Well Bus Node,14093763,R F Gardiner Limited T/as Gardiners,R2008-PUT101,R & M of Build - Reactive Repairs,08/04/2022,"1,130.00"
https://opendatacommunities.org/doc/district-council/cheltenham ,Cheltenham Borough Council,Cheltenham Depot,14093530,R F Gardiner Limited T/as Gardiners,R2004-ADB103,R & M of Build Programmed,08/04/2022,"4,500.00"
https://opendatacommunities.org/doc/district-council/cheltenham ,Cheltenham Borough Council,Cheltenham Depot,14093531,R F Gardiner Limited T/as Gardiners,R2008-ADB103,R & M of Build - Reactive Repairs,08/04/2022,"2,892.00"
https://opendatacommunities.org/doc/district-council/cheltenham ,Cheltenham Borough Council,Recreation Centre Repairs & Maintenance,14093622,R F Gardiner Limited T/as Gardiners,R2008-REC111,R & M of Build - Reactive Repairs,08/04/2022,"1,319.06"
https://opendatacommunities.org/doc/district-council/cheltenham ,Cheltenham Borough Council,Miscellaneous Operational Properties,14093625,R F Gardiner Limited T/as Gardiners,R2002-ADB104,R & M of Build Due Vandalism,08/04/2022,548.84
https://opendatacommunities.org/doc/district-council/cheltenham ,Cheltenham Borough Council,Cheltenham Depot,14093876,R F Gardiner Limited T/as Gardiners,R2008-ADB103,R & M of Build - Reactive Repairs,08/04/2022,841.96
https://opendatacommunities.org/doc/district-council/cheltenham ,Cheltenham Borough Council,Miscellaneous Operational Properties,14093916,R F Gardiner Limited T/as Gardiners,R2008-ADB104,R & M of Build - Reactive Repairs,22/04/2022,"2,331.60"
https://opendatacommunities.org/doc/district-council/cheltenham ,Cheltenham Borough Council,Pittville Pump Room Repairs & Maintenance,14093963,R F Gardiner Limited T/as Gardiners,R2004-CUL113,R & M of Build Programmed,22/04/2022,"15,471.25"
https://opendatacommunities.org/doc/district-council/cheltenham ,Cheltenham Borough Council,Cheltenham Depot,14094062,R F Gardiner Limited T/as Gardiners,R2008-ADB103,R & M of Build - Reactive Repairs,22/04/2022,"1,548.00"
https://opendatacommunities.org/doc/district-council/cheltenham ,Cheltenham Borough Council,Car Parks - Off Street R&M,14094063,R F Gardiner Limited T/as Gardiners,R2008-CPK101,R & M of Build - Reactive Repairs,29/04/2022,"2,700.00"
https://opendatacommunities.org/doc/district-council/cheltenham ,Cheltenham Borough Council,Development Control - Applications,14093349,Reach Publishing Services Ltd,R4317-DEV001,Non Staff Advertising,14/04/2022,733.32
https://opendatacommunities.org/doc/district-council/cheltenham ,Cheltenham Borough Council,Development Control - Applications,14093547,Reach Publishing Services Ltd,R4317-DEV001,Non Staff Advertising,14/04/2022,814.8
https://opendatacommunities.org/doc/district-council/cheltenham ,Cheltenham Borough Council,Development Control - Applications,14093768,Reach Publishing Services Ltd,R4317-DEV001,Non Staff Advertising,14/04/2022,529.62
https://opendatacommunities.org/doc/district-council/cheltenham ,Cheltenham Borough Council,Development Control - Applications,14094119,Reach Publishing Services Ltd,R4317-DEV001,Non Staff Advertising,22/04/2022,529.62
https://opendatacommunities.org/doc/district-council/cheltenham ,Cheltenham Borough Council,Development Control - Applications,14094228,Reach Publishing Services Ltd,R4317-DEV001,Non Staff Advertising,29/04/2022,529.62
https://opendatacommunities.org/doc/district-council/cheltenham ,Cheltenham Borough Council,Printing Services,14092726,Ricoh UK Limited,R4300-SUP022,Printing - Services,08/04/2022,"4,989.98"
https://opendatacommunities.org/doc/district-council/cheltenham ,Cheltenham Borough Council,Printing Services,14093270,Ricoh UK Limited,R4300-SUP022,Printing - Services,08/04/2022,693.87
https://opendatacommunities.org/doc/district-council/cheltenham ,Cheltenham Borough Council,Corporate Management,14094078,Roberts Limbrick Ltd,R4411-COR001,Consultancy Fees,22/04/2022,"7,950.00"
https://opendatacommunities.org/doc/district-council/cheltenham ,Cheltenham Borough Council,Council Tax Collection,14093845,Royal Mail (Billing),R4521-LTC001,Postages - franking machine,08/04/2022,549.95
https://opendatacommunities.org/doc/district-council/cheltenham ,Cheltenham Borough Council,Debtors,14093848,Royal Mail (Billing),R4521-SUP012,Postages - franking machine,08/04/2022,"1,041.59"
https://opendatacommunities.org/doc/district-council/cheltenham ,Cheltenham Borough Council,Council Tax Collection,14093848,Royal Mail (Billing),R4521-LTC001,Postages - franking machine,08/04/2022,509.81
https://opendatacommunities.org/doc/district-council/cheltenham ,Cheltenham Borough Council,Debtors,14094064,Royal Mail (Billing),R4520-SUP012,Postages - stamps,22/04/2022,"1,068.53"
https://opendatacommunities.org/doc/district-council/cheltenham ,Cheltenham Borough Council,Development Control - Applications,14093986,Ryder Landscape Consultants Limited,R4400-DEV001,Services - Professional Fees,22/04/2022,967.5
https://opendatacommunities.org/doc/district-council/cheltenham ,Cheltenham Borough Council,Development Control - Applications,14094054,Ryder Landscape Consultants Limited,R4400-DEV001,Services - Professional Fees,22/04/2022,"1,188.00"
https://opendatacommunities.org/doc/district-council/cheltenham ,Cheltenham Borough Council,War Memorials,14093867,Sally Strachey Historic Conservation Ltd T/A SSH Conservation,R2008-CUL002,R & M of Build - Reactive Repairs,08/04/2022,"1,520.00"
https://opendatacommunities.org/doc/district-council/cheltenham ,Cheltenham Borough Council,Community Welfare Grants,14093925,Sandford Lido Ltd,R6280-GBD001,Grants,14/04/2022,"3,220.00"
https://opendatacommunities.org/doc/district-council/cheltenham ,Cheltenham Borough Council,Repairs and Maintenance,14093888,SAS EPC,R2018-HRA100,R & M of Build Voids Energy Performance Certificates,08/04/2022,950
https://opendatacommunities.org/doc/district-council/cheltenham ,Cheltenham Borough Council,Asbestos Management,14093906,Savills (UK) Limited,C1004-CAH012,Legal Fees,08/04/2022,"4,950.00"
https://opendatacommunities.org/doc/district-council/cheltenham ,Cheltenham Borough Council,Income and Expenditure on Investment Properties and Changes in Their Fair Value,14093943,Savills UK Main Client Account,R4401-FIE040,Services - Fees and Charges,22/04/2022,"1,525.00"
https://opendatacommunities.org/doc/district-council/cheltenham ,Cheltenham Borough Council,Income and Expenditure on Investment Properties and Changes in Their Fair Value,14093945,Savills UK Main Client Account,R2100-FIE040,Electricity,22/04/2022,"6,522.17"
https://opendatacommunities.org/doc/district-council/cheltenham ,Cheltenham Borough Council,Income and Expenditure on Investment Properties and Changes in Their Fair Value,14093951,Savills UK Main Client Account,R2100-FIE040,Electricity,22/04/2022,"1,142.22"
https://opendatacommunities.org/doc/district-council/cheltenham ,Cheltenham Borough Council,Income and Expenditure on Investment Properties and Changes in Their Fair Value,14093955,Savills UK Main Client Account,R2100-FIE040,Electricity,22/04/2022,"1,843.63"
https://opendatacommunities.org/doc/district-council/cheltenham ,Cheltenham Borough Council,Income and Expenditure on Investment Properties and Changes in Their Fair Value,14093955,Savills UK Main Client Account,R4401-FIE040,Services - Fees and Charges,22/04/2022,"16,125.00"
https://opendatacommunities.org/doc/district-council/cheltenham ,Cheltenham Borough Council,Income and Expenditure on Investment Properties and Changes in Their Fair Value,14093940,Savills UK Main Client Account,R4401-FIE040,Services - Fees and Charges,22/04/2022,"1,171.00"
https://opendatacommunities.org/doc/district-council/cheltenham ,Cheltenham Borough Council,Income and Expenditure on Investment Properties and Changes in Their Fair Value,14093942,Savills UK Main Client Account,R4401-FIE040,Services - Fees and Charges,22/04/2022,"1,224.00"
https://opendatacommunities.org/doc/district-council/cheltenham ,Cheltenham Borough Council,Income and Expenditure on Investment Properties and Changes in Their Fair Value,14093952,Savills UK Main Client Account,R4401-FIE040,Services - Fees and Charges,22/04/2022,"1,707.00"
https://opendatacommunities.org/doc/district-council/cheltenham ,Cheltenham Borough Council,Income and Expenditure on Investment Properties and Changes in Their Fair Value,14093956,Savills UK Main Client Account,R4401-FIE040,Services - Fees and Charges,22/04/2022,"1,156.00"
https://opendatacommunities.org/doc/district-council/cheltenham ,Cheltenham Borough Council,Income and Expenditure on Investment Properties and Changes in Their Fair Value,14093946,Savills UK Main Client Account,R2100-FIE040,Electricity,22/04/2022,"2,875.46"
https://opendatacommunities.org/doc/district-council/cheltenham ,Cheltenham Borough Council,Income and Expenditure on Investment Properties and Changes in Their Fair Value,14093954,Savills UK Main Client Account,R2100-FIE040,Electricity,22/04/2022,"2,147.77"
https://opendatacommunities.org/doc/district-council/cheltenham ,Cheltenham Borough Council,Income and Expenditure on Investment Properties and Changes in Their Fair Value,14093947,Savills UK Main Client Account,R2004-FIE040,R & M of Build Programmed,22/04/2022,"6,597.23"
https://opendatacommunities.org/doc/district-council/cheltenham ,Cheltenham Borough Council,Car Parks - Off Street Operations,14093958,Scheidt & Bachmann UK Ltd,R4003-CPK001,Tools & Equipment - R & M,14/04/2022,"4,554.08"
https://opendatacommunities.org/doc/district-council/cheltenham ,Cheltenham Borough Council,Cheltenham Depot,14093516,Securitas Security Services Ltd,R2705-ADB103,Security Systems,08/04/2022,"1,654.58"
https://opendatacommunities.org/doc/district-council/cheltenham ,Cheltenham Borough Council,Cyber Business Park,14093909,Severn Trent Water (Fees and Services),R4400-PLP105,Services - Professional Fees,08/04/2022,"66,063.00"
https://opendatacommunities.org/doc/district-council/cheltenham ,Cheltenham Borough Council,Internal Improvements - Communal,14094053,Shield Electrical Services Ltd,C1107-CAH035,Building Works,22/04/2022,"8,050.04"
https://opendatacommunities.org/doc/district-council/cheltenham ,Cheltenham Borough Council,Internal Improvements - Communal,14094053,Shield Electrical Services Ltd,C1107-CAH035,Building Works,22/04/2022,"1,000.00"
https://opendatacommunities.org/doc/district-council/cheltenham ,Cheltenham Borough Council,Internal Improvements,14094144,Shield Electrical Services Ltd,C1107-CAH004,Building Works,29/04/2022,609.81
https://opendatacommunities.org/doc/district-council/cheltenham ,Cheltenham Borough Council,Internal Improvements,14094144,Shield Electrical Services Ltd,C1107-CAH004,Building Works,29/04/2022,"3,000.00"
https://opendatacommunities.org/doc/district-council/cheltenham ,Cheltenham Borough Council,New Heating Installations,14094145,Shield Electrical Services Ltd,C1107-CAH009,Building Works,29/04/2022,"11,000.00"
https://opendatacommunities.org/doc/district-council/cheltenham ,Cheltenham Borough Council,New Heating Installations,14094145,Shield Electrical Services Ltd,C1107-CAH009,Building Works,29/04/2022,"1,720.72"
https://opendatacommunities.org/doc/district-council/cheltenham ,Cheltenham Borough Council,Internal Improvements - Communal,14094146,Shield Electrical Services Ltd,C1107-CAH035,Building Works,29/04/2022,"1,000.00"
https://opendatacommunities.org/doc/district-council/cheltenham ,Cheltenham Borough Council,Internal Improvements - Communal,14094146,Shield Electrical Services Ltd,C1107-CAH035,Building Works,29/04/2022,864.7
https://opendatacommunities.org/doc/district-council/cheltenham ,Cheltenham Borough Council,Parks & Gardens Operations,14093543,Silver Tree Services (STS) Ltd,R4003-OPS001,Tools & Equipment - R & M,08/04/2022,600
https://opendatacommunities.org/doc/district-council/cheltenham ,Cheltenham Borough Council,Allotments,14093962,Smith's (Gloucester) Limited,R4323-OPS004,Skip Hire,22/04/2022,635
https://opendatacommunities.org/doc/district-council/cheltenham ,Cheltenham Borough Council,External Improvements,14090935,Snape Contracting Services Limited,C1107-CAH003,Building Works,29/04/2022,"3,714.36"
https://opendatacommunities.org/doc/district-council/cheltenham ,Cheltenham Borough Council,Fire Protection,14093823,Snape Contracting Services Limited,C1107-CAH015,Building Works,29/04/2022,"4,348.23"
https://opendatacommunities.org/doc/district-council/cheltenham ,Cheltenham Borough Council,Internal Audit,14093996,South West Audit Partnership Limited (SWAP),R4400-SUP010,Services - Professional Fees,22/04/2022,"27,906.25"
https://opendatacommunities.org/doc/district-council/cheltenham ,Cheltenham Borough Council,Corporate Subscriptions,14093923,South West Councils,R4701-DRM008,Subscriptions,08/04/2022,"8,205.00"
https://opendatacommunities.org/doc/district-council/cheltenham ,Cheltenham Borough Council,Bulking Facility,14093828,South West Wood Products Limited,R2703-RYC008,Waste Management,08/04/2022,"6,688.32"
https://opendatacommunities.org/doc/district-council/cheltenham ,Cheltenham Borough Council,Bulking Facility,14093827,South West Wood Products Limited,R2703-RYC008,Waste Management,08/04/2022,720.96
https://opendatacommunities.org/doc/district-council/cheltenham ,Cheltenham Borough Council,Public Sector Decarbonisation Scheme (Carbon Neutral Agenda),14092596,Stark Software International Limited,C4008-CAP032,Communications Equipment,08/04/2022,"24,045.86"
https://opendatacommunities.org/doc/district-council/cheltenham ,Cheltenham Borough Council,Community Safety (Crime Reduction),14093999,Sterling Security Solutions GL1 Limited,R4409-CCR001,Partnership Staff Fees,22/04/2022,"1,170.00"
https://opendatacommunities.org/doc/district-council/cheltenham ,Cheltenham Borough Council,Community Safety (Crime Reduction),14094002,Sterling Security Solutions GL1 Limited,R4409-CCR001,Partnership Staff Fees,22/04/2022,"1,440.00"
https://opendatacommunities.org/doc/district-council/cheltenham ,Cheltenham Borough Council,Community Safety (Crime Reduction),14094000,Sterling Security Solutions GL1 Limited,R4409-CCR001,Partnership Staff Fees,22/04/2022,"1,620.00"
https://opendatacommunities.org/doc/district-council/cheltenham ,Cheltenham Borough Council,Community Safety (Crime Reduction),14094003,Sterling Security Solutions GL1 Limited,R4409-CCR001,Partnership Staff Fees,22/04/2022,"2,052.00"
https://opendatacommunities.org/doc/district-council/cheltenham ,Cheltenham Borough Council,Community Safety (Crime Reduction),14094001,Sterling Security Solutions GL1 Limited,R4409-CCR001,Partnership Staff Fees,22/04/2022,"1,188.00"
https://opendatacommunities.org/doc/district-council/cheltenham ,Cheltenham Borough Council,Community Safety (Crime Reduction),14094004,Sterling Security Solutions GL1 Limited,R4409-CCR001,Partnership Staff Fees,22/04/2022,684
https://opendatacommunities.org/doc/district-council/cheltenham ,Cheltenham Borough Council,Non Traditional Homes,14093995,Sustainable Building Services UK Ltd,C1107-CAH036,Building Works,22/04/2022,"22,844.00"
https://opendatacommunities.org/doc/district-council/cheltenham ,Cheltenham Borough Council,Sustainability Measures,14093895,Terry Group Limited,C1107-CAH032,Building Works,08/04/2022,"11,037.00"
https://opendatacommunities.org/doc/district-council/cheltenham ,Cheltenham Borough Council,"Cemetery, Crematorium and Churchyards",14093896,Tewkesbury Borough Council,R2300-CCM001,Business Rates,08/04/2022,"83,968.00"
https://opendatacommunities.org/doc/district-council/cheltenham ,Cheltenham Borough Council,Property Services,14093502,Tewkesbury Borough Council,R4426-SUP025,Legal Expenses,22/04/2022,"2,365.50"
https://opendatacommunities.org/doc/district-council/cheltenham ,Cheltenham Borough Council,Car Parks - Off Street Operations,14093502,Tewkesbury Borough Council,R4426-CPK001,Legal Expenses,22/04/2022,611.1
https://opendatacommunities.org/doc/district-council/cheltenham ,Cheltenham Borough Council,Property Services,14093502,Tewkesbury Borough Council,R4426-SUP025,Legal Expenses,22/04/2022,"3,930.00"
https://opendatacommunities.org/doc/district-council/cheltenham ,Cheltenham Borough Council,Car Parks - Off Street Operations,14093502,Tewkesbury Borough Council,R4426-CPK001,Legal Expenses,22/04/2022,529.62
https://opendatacommunities.org/doc/district-council/cheltenham ,Cheltenham Borough Council,Minster Innovation Exchange,14093593,Tewkesbury Borough Council,C1004-CAP515,Legal Fees,08/04/2022,"1,317.10"
https://opendatacommunities.org/doc/district-council/cheltenham ,Cheltenham Borough Council,Development costs REDACTED,14093897,Tewkesbury Borough Council,C1004-CAH071,Legal Fees,08/04/2022,691.96
https://opendatacommunities.org/doc/district-council/cheltenham ,Cheltenham Borough Council,Legal,14093898,Tewkesbury Borough Council,R4401-SUP004,Services - Fees and Charges,08/04/2022,"135,394.72"
https://opendatacommunities.org/doc/district-council/cheltenham ,Cheltenham Borough Council,Development costs -REDACTED,14093959,Tewkesbury Borough Council,C1004-CAH071,Legal Fees,22/04/2022,775
https://opendatacommunities.org/doc/district-council/cheltenham ,Cheltenham Borough Council,Property Services,14094090,Tewkesbury Borough Council,R4400-SUP025,Services - Professional Fees,22/04/2022,722
https://opendatacommunities.org/doc/district-council/cheltenham ,Cheltenham Borough Council,Development Control - Applications,14094093,Tewkesbury Borough Council,R4420-DEV001,Legal Expenses And Court Costs,22/04/2022,"9,663.40"
https://opendatacommunities.org/doc/district-council/cheltenham ,Cheltenham Borough Council,"Cemetery, Crematorium and Churchyards",14094191,Tewkesbury Borough Council,R2205-CCM001,Service Charges,29/04/2022,"1,161.00"
https://opendatacommunities.org/doc/district-council/cheltenham ,Cheltenham Borough Council,Tourist/Visitor Information Centre/ Marketing Cheltenham wef 2019/20,14093905,TFN Landscapes Limited,R4400-TOU002,Services - Professional Fees,14/04/2022,"5,579.00"
https://opendatacommunities.org/doc/district-council/cheltenham ,Cheltenham Borough Council,"Cemetery, Crematorium and Churchyards",14093939,The Federation of Burial and Cremation Authorities (FBCA),R4701-CCM001,Subscriptions,14/04/2022,"1,045.00"
https://opendatacommunities.org/doc/district-council/cheltenham ,Cheltenham Borough Council,Community Welfare Grants,14094207,The Music Works (Charity),R6280-GBD001,Grants,29/04/2022,"3,400.00"
https://opendatacommunities.org/doc/district-council/cheltenham ,Cheltenham Borough Council,COVID Management,14094174,The Oyster Partnership Limited,R4401-COV021,Services - Fees and Charges,29/04/2022,"1,020.00"
https://opendatacommunities.org/doc/district-council/cheltenham ,Cheltenham Borough Council,Sports & Open Spaces Operations,14093984,The Play Inspection Company Limited,R4000-OPS002,Equipment Purchase,22/04/2022,"4,253.55"
https://opendatacommunities.org/doc/district-council/cheltenham ,Cheltenham Borough Council,High Street re-opening,14093820,The South West Research Company Limited,R4400-COV020,Services - Professional Fees,01/04/2022,900
https://opendatacommunities.org/doc/district-council/cheltenham ,Cheltenham Borough Council,Adaptations for the Disabled (CBC),14093980,The Surveying Practice - Client Account,C1107-CAH028,Building Works,14/04/2022,"20,000.00"
https://opendatacommunities.org/doc/district-council/cheltenham ,Cheltenham Borough Council,Disabled Facility Grants,14093982,The Surveying Practice - Client Account,C5000-CAP221,Grants,14/04/2022,"1,950.00"
https://opendatacommunities.org/doc/district-council/cheltenham ,Cheltenham Borough Council,Adaptations for the Disabled (CBC),14094300,The Surveying Practice - Client Account,C1107-CAH028,Building Works,29/04/2022,"6,588.00"
https://opendatacommunities.org/doc/district-council/cheltenham ,Cheltenham Borough Council,Adaptations for the Disabled (CBC),14093981,The Surveying Practice - Client Account,C1107-CAH028,Building Works,14/04/2022,"12,249.80"
https://opendatacommunities.org/doc/district-council/cheltenham ,Cheltenham Borough Council,Disabled Facility Grants,14094305,The Surveying Practice - Client Account,C5000-CAP221,Grants,29/04/2022,"18,848.50"
https://opendatacommunities.org/doc/district-council/cheltenham ,Cheltenham Borough Council,Disabled Facility Grants,14094169,The Surveying Practice - Client Account,C5000-CAP221,Grants,29/04/2022,"12,956.66"
https://opendatacommunities.org/doc/district-council/cheltenham ,Cheltenham Borough Council,Disabled Facility Grants,14094168,The Surveying Practice - Client Account,C5000-CAP221,Grants,29/04/2022,"2,855.84"
https://opendatacommunities.org/doc/district-council/cheltenham ,Cheltenham Borough Council,District Elections,14094028,Thomson Reuters,R4309-ELE002,Books,22/04/2022,628
https://opendatacommunities.org/doc/district-council/cheltenham ,Cheltenham Borough Council,Cyber Business Park,14093967,Trowers & Hamlins LLP,R4411-PLP105,Consultancy Fees,22/04/2022,"5,385.50"
https://opendatacommunities.org/doc/district-council/cheltenham ,Cheltenham Borough Council,Urban Design,14093829,Trueform Engineering Limited,R2072-URB101,Signs and Notices,08/04/2022,"1,550.00"
https://opendatacommunities.org/doc/district-council/cheltenham ,Cheltenham Borough Council,ICT,14094298,Trustmarque Solutions Limited,R4535-SUP005,IT - Licences,29/04/2022,"5,985.03"
https://opendatacommunities.org/doc/district-council/cheltenham ,Cheltenham Borough Council,Supervision and Management,14094188,Tunstall Healthcare (UK) Limited,R4445-HRA110,Communal Alarms - Monitoring & Maintenance,29/04/2022,"13,730.69"
https://opendatacommunities.org/doc/district-council/cheltenham ,Cheltenham Borough Council,"Cemetery, Crematorium and Churchyards",14094103,Ubico Limited,R3020-CCM001,Vehicle Maintenance - Contract,29/04/2022,935.85
https://opendatacommunities.org/doc/district-council/cheltenham ,Cheltenham Borough Council,Household Waste,14093934,Ubico Limited,R5001-WST001,TPP - Major External Contractors,22/04/2022,"763,429.00"
https://opendatacommunities.org/doc/district-council/cheltenham ,Cheltenham Borough Council,"Cemetery, Crematorium and Churchyards",14094209,Ubico Limited,R3020-CCM001,Vehicle Maintenance - Contract,29/04/2022,935.85
https://opendatacommunities.org/doc/district-council/cheltenham ,Cheltenham Borough Council,Household Waste,14094154,Ubico Limited,R5001-WST001,TPP - Major External Contractors,29/04/2022,"763,429.00"
https://opendatacommunities.org/doc/district-council/cheltenham ,Cheltenham Borough Council,No Child Left Behind,14094167,University of Gloucestershire,R4400-GBD002,Services - Professional Fees,29/04/2022,"7,300.00"
https://opendatacommunities.org/doc/district-council/cheltenham ,Cheltenham Borough Council,Bulky Household Waste,14094073,Vision 21,R4401-WST004,Services - Fees and Charges,29/04/2022,"5,475.00"
https://opendatacommunities.org/doc/district-council/cheltenham ,Cheltenham Borough Council,Climate Change,14094293,Vision 21,R4411-CCC001,Consultancy Fees,29/04/2022,"6,250.00"
https://opendatacommunities.org/doc/district-council/cheltenham ,Cheltenham Borough Council,"Cemetery, Crematorium and Churchyards",14094023,Vivedia Limited,R4011-CCM001,Goods For Resale,22/04/2022,"3,487.00"
https://opendatacommunities.org/doc/district-council/cheltenham ,Cheltenham Borough Council,Modernisation,14093891,We Are BPR Limited t/a We Are Lean and Agile,R4400-SUP107,Services - Professional Fees,08/04/2022,"9,200.00"
https://opendatacommunities.org/doc/district-council/cheltenham ,Cheltenham Borough Council,Flood Risk Management,14094026,West Oxfordshire District Council,R4401-FRM101,Services - Fees and Charges,29/04/2022,"7,500.00"
https://opendatacommunities.org/doc/district-council/cheltenham ,Cheltenham Borough Council,Minster Innovation Exchange,14094235,WorkShop Cheltenham Limited,C1100-CAP515,Construction,27/04/2022,"4,875.00"
https://opendatacommunities.org/doc/district-council/cheltenham ,Cheltenham Borough Council,Minster Innovation Exchange,14094235,WorkShop Cheltenham Limited,C1100-CAP515,Construction,27/04/2022,"-4,878.00"
https://opendatacommunities.org/doc/district-council/cheltenham ,Cheltenham Borough Council,Minster Innovation Exchange,14094235,WorkShop Cheltenham Limited,C1100-CAP515,Construction,27/04/2022,"331,655.71"
https://opendatacommunities.org/doc/district-council/cheltenham ,Cheltenham Borough Council,Minster Innovation Exchange,14094099,WorkShop Cheltenham Limited,C1116-CAP515,Other Development Fees,22/04/2022,"2,575.00"
https://opendatacommunities.org/doc/district-council/cheltenham ,Cheltenham Borough Council,Supervision and Management,14094101,Zurich Insurance plc (RTB Block Policies),R2801-HRA110,Insurances - Property All Risks,22/04/2022,"93,687.22"
https://opendatacommunities.org/doc/district-council/cheltenham ,Cheltenham Borough Council,Carbon Neutral Agenda,14093691,Naunton Park Pre School Playgroup,C5000-CAP030,Grants,08/04/2022,680
https://opendatacommunities.org/doc/district-council/cheltenham ,Cheltenham Borough Council,Parks & Gardens Operations,14094083,Uk Table Tennis,R4003-OPS001,Tools & Equipment - R & M,22/04/2022,"4,093.34"
Bank Transactions,,,,,,,,
https://opendatacommunities.org/doc/district-council/cheltenham ,Cheltenham Borough Council,Cheltenham Municipal Offices,10039312,WEST MERCIA ENERGY - ELECTRICITY - MUNICIPAL OFFICES-  01/02/2022-28/02/2022,R2100-ADB101,Electricity,14/04/2022,"7,393.72"
https://opendatacommunities.org/doc/district-council/cheltenham ,Cheltenham Borough Council,Cheltenham Municipal Offices,10039312,WEST MERCIA ENERGY - GAS - MUNICIPAL OFFICES - 31/01/2022-28/02/2022,R2101-ADB101,Gas,14/04/2022,"1,806.33"
https://opendatacommunities.org/doc/district-council/cheltenham ,Cheltenham Borough Council,Cheltenham Depot,10039312,"WEST MERCIA ENERGY - ELECTRICITY - CENTRAL DEPOT, SWINDON ROAD -  01/02/2022-28/02/2022",R2100-ADB103,Electricity,14/04/2022,"5,415.98"
https://opendatacommunities.org/doc/district-council/cheltenham ,Cheltenham Borough Council,Cheltenham Depot,10039312,WEST MERCIA ENERGY - GAS - CENTRAL DEPOT - 31/01/2022-28/02/2022,R2101-ADB103,Gas,14/04/2022,"2,053.51"
https://opendatacommunities.org/doc/district-council/cheltenham ,Cheltenham Borough Council,Phase 3 Development,10039276,REDACTED,C1001-CAH039,Acquisition of Buildings,08/04/2022,"162,500.00"
https://opendatacommunities.org/doc/district-council/cheltenham ,Cheltenham Borough Council,Phase 3 Development,10039278,REDACTED,C1001-CAH039,Acquisition of Buildings,11/04/2022,"5,625.00"
https://opendatacommunities.org/doc/district-council/cheltenham ,Cheltenham Borough Council,Phase 3 Development,10039281,REDACTED,C1001-CAH039,Acquisition of Buildings,14/04/2022,"16,886.13"
https://opendatacommunities.org/doc/district-council/cheltenham ,Cheltenham Borough Council,"Cemetery, Crematorium and Churchyards",10039312,WEST MERCIA ENERGY - ELECTRICITY - CEMETERY & CREMATORIUM -  01/02/2022-28/02/2022,R2100-CCM001,Electricity,14/04/2022,"2,079.22"
https://opendatacommunities.org/doc/district-council/cheltenham ,Cheltenham Borough Council,"Cemetery, Crematorium and Churchyards",10039312,WEST MERCIA ENERGY - GAS - CREMETERY & CREMATORIUM - 31/01/2022-28/02/2022,R2101-CCM001,Gas,14/04/2022,"3,181.40"
https://opendatacommunities.org/doc/district-council/cheltenham ,Cheltenham Borough Council,"Cemetery, Crematorium and Churchyards",10039201,"WATER PLUS REDACTED - CREMATORIUM CEMETERY, BOUNCERS LANE, PRESTBURY, CHELTENHAM GL52 5JR - WATER CHARGE - 01/04/2022-01/04/2023",R2401-CCM001,Water Services - Metered,19/04/2022,"3,939.00"
https://opendatacommunities.org/doc/district-council/cheltenham ,Cheltenham Borough Council,"Cemetery, Crematorium and Churchyards",10039201,"WATER PLUS REDACTED - CREMATORIUM CEMETERY, BOUNCERS LANE, PRESTBURY, CHELTENHAM GL52 5JR -SEWERAGE CHARGE - 01/04/2022-01/04/2023",R2402-CCM001,Sewerage and Environmental Services,19/04/2022,"3,078.65"
https://opendatacommunities.org/doc/district-council/cheltenham ,Cheltenham Borough Council,CCTV,10039312,WEST MERCIA ENERGY - ELECTRICITY - CCTV @ VARIOUS LOCATIONS  -  01/02/2022-28/02/2022,R2100-CCT001,Electricity,14/04/2022,627.15
https://opendatacommunities.org/doc/district-council/cheltenham ,Cheltenham Borough Council,Treasury Management,10039402,SERVICE CHARGES REDACTED,R4403-COR006,Bank Charges,29/04/2022,582.65
https://opendatacommunities.org/doc/district-council/cheltenham ,Cheltenham Borough Council,Treasury Management,10039161,CARDNET SERVICE CHARGES - REDACTED,R4428-COR006,Services - credit card charges,14/04/2022,"5,284.97"
https://opendatacommunities.org/doc/district-council/cheltenham ,Cheltenham Borough Council,Treasury Management,10039161,CARDNET SERVICE CHARGES - REDACTED,R4428-COR006,Services - credit card charges,14/04/2022,"2,345.34"
https://opendatacommunities.org/doc/district-council/cheltenham ,Cheltenham Borough Council,Treasury Management,10039161,CARDNET SERVICE CHARGES - REDACTED,R4428-COR006,Services - credit card charges,14/04/2022,"1,038.49"
https://opendatacommunities.org/doc/district-council/cheltenham ,Cheltenham Borough Council,High Street re-opening,10038970,Cube Modular Ltd,R4400-COV020,Services - Professional Fees,01/04/2022,"-5,999.40"
https://opendatacommunities.org/doc/district-council/cheltenham ,Cheltenham Borough Council,High Street re-opening,10038970,The South West Res,R4400-COV020,Services - Professional Fees,01/04/2022,"-1,080.00"
https://opendatacommunities.org/doc/district-council/cheltenham ,Cheltenham Borough Council,Car Parks - Off Street Operations,10039312,WEST MERCIA ENERGY - ELECTRICITY - CAR PARK - GROSVENOR TERRACE -  01/02/2022-28/02/2022,R2100-CPK001,Electricity,14/04/2022,"1,193.31"
https://opendatacommunities.org/doc/district-council/cheltenham ,Cheltenham Borough Council,Car Parks - Off Street Operations,10039312,WEST MERCIA ENERGY - ELECTRICITY - CAR PARK - REGENT ARCADE -  01/02/2022-28/02/2022,R2100-CPK001,Electricity,14/04/2022,926.68
https://opendatacommunities.org/doc/district-council/cheltenham ,Cheltenham Borough Council,Car Parks - Off Street Operations,10039149,BARCLAYCARD REDACTED,R4428-CPK001,Services - credit card charges,11/04/2022,968.14
https://opendatacommunities.org/doc/district-council/cheltenham ,Cheltenham Borough Council,Car Parks - Off Street Operations,10039211,S/LINE REDACTED,R4428-CPK001,Services - credit card charges,20/04/2022,"1,305.53"
https://opendatacommunities.org/doc/district-council/cheltenham ,Cheltenham Borough Council,Car Parks - Off Street Operations,10039211,S/LINE REDACTED,R4428-CPK001,Services - credit card charges,20/04/2022,"2,527.33"
https://opendatacommunities.org/doc/district-council/cheltenham ,Cheltenham Borough Council,Car Parks - Off Street Operations,10039211,W/PAY REDACTED,R4428-CPK001,Services - credit card charges,20/04/2022,965.4
https://opendatacommunities.org/doc/district-council/cheltenham ,Cheltenham Borough Council,Everyman Theatre,10039265,Everyman Theatre grant for 2022/23,R6280-CUL108,Grants,26/04/2022,"195,050.00"
https://opendatacommunities.org/doc/district-council/cheltenham ,Cheltenham Borough Council,Town Hall Repairs & Maintenance,10039312,WEST MERCIA ENERGY - ELECTRICITY - CHELTENHAM TOWN HALL-  01/02/2022-28/02/2022,R2100-CUL112,Electricity,14/04/2022,"5,594.55"
https://opendatacommunities.org/doc/district-council/cheltenham ,Cheltenham Borough Council,Town Hall Repairs & Maintenance,10039312,WEST MERCIA ENERGY - GAS - CHELTENHAM TOWN HALL - 31/01/2022-28/02/2022,R2101-CUL112,Gas,14/04/2022,"2,193.46"
https://opendatacommunities.org/doc/district-council/cheltenham ,Cheltenham Borough Council,Pittville Pump Room Repairs & Maintenance,10039312,WEST MERCIA ENERGY - ELECTRICITY - PITTVILLE PUMP ROOMS  -  01/02/2022-28/02/2022,R2100-CUL113,Electricity,14/04/2022,"2,537.17"
https://opendatacommunities.org/doc/district-council/cheltenham ,Cheltenham Borough Council,Pittville Pump Room Repairs & Maintenance,10039312,WEST MERCIA ENERGY - GAS - PITTVILLE PUMP ROOMS  - 31/01/2022-28/02/2022,R2101-CUL113,Gas,14/04/2022,703.18
https://opendatacommunities.org/doc/district-council/cheltenham ,Cheltenham Borough Council,Art Gallery & Museum Repairs & Maintenance,10039312,WEST MERCIA ENERGY - ELECTRICITY - WILSON ART GALLERY & MUSEUM - 01/02/2022-28/02/2022,R2100-CUL117,Electricity,14/04/2022,"2,629.58"
https://opendatacommunities.org/doc/district-council/cheltenham ,Cheltenham Borough Council,Art Gallery & Museum Repairs & Maintenance,10039360,WEST MERCIA ENERGY - ELECTRICITY - WILSON ART GALLERY & MUSEUM - 01/02/2022-28/02/2022,R2100-CUL117,Electricity,28/04/2022,716.89
https://opendatacommunities.org/doc/district-council/cheltenham ,Cheltenham Borough Council,Art Gallery & Museum Repairs & Maintenance,10039312,WEST MERCIA ENERGY - GAS -WILSON ART GALLERY & MUSEUM - 31/01/2022-28/02/2022,R2101-CUL117,Gas,14/04/2022,"2,060.92"
https://opendatacommunities.org/doc/district-council/cheltenham ,Cheltenham Borough Council,No Child Left Behind,10038970,Production AV Ltd,R4400-GBD002,Services - Professional Fees,01/04/2022,"-3,000.00"
https://opendatacommunities.org/doc/district-council/cheltenham ,Cheltenham Borough Council,Supervision and Management,10039243,OPUS ENERGY CORPORATION REDACTED,R2100-HRA110,Electricity,22/04/2022,"11,883.50"
https://opendatacommunities.org/doc/district-council/cheltenham ,Cheltenham Borough Council,Supervision and Management,10039312,WEST MERCIA ENERGY - GAS - COOPERS COURT - 31/01/2022-28/02/2022,R2101-HRA110,Gas,14/04/2022,"1,162.69"
https://opendatacommunities.org/doc/district-council/cheltenham ,Cheltenham Borough Council,Supervision and Management,10039312,WEST MERCIA ENERGY - GAS - GILBERT WARD COURT - 31/01/2022-28/02/2022,R2101-HRA110,Gas,14/04/2022,999.41
https://opendatacommunities.org/doc/district-council/cheltenham ,Cheltenham Borough Council,Supervision and Management,10039312,WEST MERCIA ENERGY - GAS - GOLDFOOT HOUSE - 31/01/2022-28/02/2022,R2101-HRA110,Gas,14/04/2022,"1,170.02"
https://opendatacommunities.org/doc/district-council/cheltenham ,Cheltenham Borough Council,Supervision and Management,10039312,WEST MERCIA ENERGY - GAS - POPES CLOSE  - 31/01/2022-28/02/2022,R2101-HRA110,Gas,14/04/2022,996.35
https://opendatacommunities.org/doc/district-council/cheltenham ,Cheltenham Borough Council,Supervision and Management,10039312,WEST MERCIA ENERGY - GAS -WALLACE HOUSE - 31/01/2022-28/02/2022,R2101-HRA110,Gas,14/04/2022,"1,107.09"
https://opendatacommunities.org/doc/district-council/cheltenham ,Cheltenham Borough Council,"Rents, Rates, Taxes and Other Charges",10039201,"WATER PLUS REDACTED - COMMUNAL ROOMS, POPES CLOSE, CHELTENHAM GL50 4BQ - WATER CHARGE - 01/04/2022-01/04/2023",R2400-HRA120,Water Services - Unmetered,19/04/2022,574.17
https://opendatacommunities.org/doc/district-council/cheltenham ,Cheltenham Borough Council,"Rents, Rates, Taxes and Other Charges",10039201,"WATER PLUS REDACTED -  WALLACE HOUSE, COMMUNAL ROOMS, 1 WALLACE HOUSE, BUTTERMERE CLOSE, CHELTENHAM  GL51 5NZ - WATER CHARGE - 01/04/2022-01/04/2023",R2400-HRA120,Water Services - Unmetered,19/04/2022,996.4
https://opendatacommunities.org/doc/district-council/cheltenham ,Cheltenham Borough Council,"Rents, Rates, Taxes and Other Charges",10039201,"WATER PLUS REDACTED -  WALLACE HOUSE, COMMUNAL ROOMS, 1 WALLACE HOUSE, BUTTERMERE CLOSE, CHELTENHAM  GL51 5NZ -SEWERAGE CHARGE - 01/04/2022-01/04/2023",R2400-HRA120,Water Services - Unmetered,19/04/2022,796.47
https://opendatacommunities.org/doc/district-council/cheltenham ,Cheltenham Borough Council,"Rents, Rates, Taxes and Other Charges",10039201,"WATER PLUS REDACTED- COMMUNAL ROOMS, COOPERS COURT, CHURCH STREET, CHARLTON KINGS, CHELTENHAM GL53 8AP - WATER CHARGE - 01/04/2022-01/04/2023",R2400-HRA120,Water Services - Unmetered,19/04/2022,780.57
https://opendatacommunities.org/doc/district-council/cheltenham ,Cheltenham Borough Council,"Rents, Rates, Taxes and Other Charges",10039201,"WATER PLUS REDACTED - COMMUNAL ROOMS, COOPERS COURT, CHURCH STREET, CHARLTON KINGS, CHELTENHAM GL53 8AP -SEWERAGE CHARGE - 01/04/2022-01/04/2023",R2400-HRA120,Water Services - Unmetered,19/04/2022,629.08
https://opendatacommunities.org/doc/district-council/cheltenham ,Cheltenham Borough Council,Recreation Centre Repairs & Maintenance,10039312,"WEST MERCIA ENERGY - ELECTRICITY - LEISURE CENTRE, TOMMY TAYLOR LANE  -  01/02/2022-28/02/2022",R2100-REC111,Electricity,14/04/2022,"9,979.44"
https://opendatacommunities.org/doc/district-council/cheltenham ,Cheltenham Borough Council,Recreation Centre Repairs & Maintenance,10039312,WEST MERCIA ENERGY - GAS - LEISURE CENTRE - TOMMY TAYLORS LANE  - 31/01/2022-28/02/2022,R2101-REC111,Gas,14/04/2022,"8,122.50"
https://opendatacommunities.org/doc/district-council/cheltenham ,Cheltenham Borough Council,Prince of Wales Stadium Repairs & Maintenance,10039312,WEST MERCIA ENERGY - ELECTRICITY - PRINCE OF WALES STADIUM  -  01/02/2022-28/02/2022,R2100-REC112,Electricity,14/04/2022,"1,042.18"
https://opendatacommunities.org/doc/district-council/cheltenham ,Cheltenham Borough Council,Prince of Wales Stadium Repairs & Maintenance,10039212,"WATER PLUS REDACTED - PRINCE OF WALES STADIUM CLUB ROOM, TOMMY TAYLORS LANE, CHELTENHAM GL50 4NL - DRAINAGE CHARGE - 01/01/2022-01/04/2022",R2402-REC112,Sewerage and Environmental Services,20/04/2022,918.95
https://opendatacommunities.org/doc/district-council/cheltenham ,Cheltenham Borough Council,Telephones,10039015,VODAFONE CORPORATION REDACTED,R4507-SUP006,Comms - Mobile Telephones,06/04/2022,"1,069.25"
https://opendatacommunities.org/doc/district-council/cheltenham ,Cheltenham Borough Council,Telephones,10039149,BRITISH TELECOM REDACTED,R4515-SUP006,Comms - Telephone Call Charges,11/04/2022,"9,242.44"
